bitfinex-derivatives/quotes_ETHF0:USTF0_20250316
["timestamp","ask_amount","ask_price","bid_price","bid_amount"]
[1742088462596,1.03539,1931.6,1931.5,1.998]
[1742088464790,1.03539,1931.6,1931.5,1.3105]
[1742088464991,4.24319,1931.6,1931.5,1.3105]
[1742088465389,4.24319,1931.6,1931.5,2.34594]
[1742088465799,4.24319,1931.6,1931.5,1.3105]
[1742088466392,4.24319,1931.6,1931.5,2.34594]
[1742088466600,4.24319,1931.6,1931.5,1.3105]
[1742088468899,4.24319,1931.6,1931.5,2.34594]
[1742088469294,5.69359,1931.6,1931.5,2.34594]
[1742088471402,0.98845536,1931.7,1931.6,1.03539]
[1742088471403,0.00777726,1931.7,1931.6,1.03539]
[1742088471699,0.00777726,1931.7,1931.6,2.40269]
[1742088472195,9.66991,1932.2,1932.1,1.03512]
[1742088472399,4.5983,1932.2,1932.1,1.03512]
[1742088472601,5.2243612,1932.2,1932.1,1.03512]
[1742088472800,6.6148612,1932.2,1932.1,1.03512]
[1742088473192,5.5798012,1932.2,1932.1,1.03512]
[1742088473702,6.6148612,1932.2,1932.1,2.41052]
[1742088474201,5.63336,1932.2,1932.1,2.41052]
[1742088474406,5.63336,1932.2,1932.1,1.3754]
[1742088475304,6.61459061,1932.2,1932.1,1.3754]
[1742088475802,7.28659061,1932.2,1932.1,1.3754]
[1742088476192,1.03512,1932.1,1932.0,0.00777726]
[1742088476396,2.43662,1932.1,1932.0,0.00777726]
[1742088476599,2.43662,1932.1,1932.0,1.33937726]
[1742088476600,3.15052,1932.1,1932.0,1.33937726]
[1742088477201,1.4015,1932.1,1932.0,2.37454726]
[1742088477406,5.22414061,1932.2,1932.1,1.03512]
[1742088477600,1.03512,1932.1,1932.0,1.04291726]
[1742088477793,2.44792,1932.1,1932.0,1.04291726]
[1742088479001,2.44792,1932.1,1932.0,0.00777726]
[1742088480601,1.4128,1932.1,1932.0,1.04294726]
[1742088483805,3.2078,1932.2,1932.1,1.03512]
[1742088484109,5.57256,1932.2,1932.1,2.43792]
[1742088486609,1.03512,1932.1,1932.0,0.00777726]
[1742088486913,7.04902,1932.1,1932.0,0.00777726]
[1742088490510,7.88573378,1932.1,1932.0,0.00777726]
[1742088490812,1.03534,1931.7,1931.6,1.03535]
[1742088491308,1.03532,1931.8,1931.7,1.03532]
[1742088492016,1.75662,1931.8,1931.7,1.03532]
[1742088492314,1.75662,1931.8,1931.6,1.04312726]
[1742088492508,4.24313,1931.7,1931.6,0.00777726]
[1742088492716,4.24313,1931.7,1931.6,1.04316726]
[1742088492918,4.89663,1931.7,1931.6,1.04316726]
[1742088493111,3.8613,1931.7,1931.6,1.04316726]
[1742088493317,0.98145935,1931.7,1931.6,1.04316726]
[1742088493803,0.98145935,1931.7,1931.6,2.37296726]
[1742088494208,2.47187086,1932.0,1931.8,1.03528]
[1742088494408,6.00315935,1932.0,1931.9,2.0364]
[1742088494608,6.00315935,1932.0,1931.9,1.3298]
[1742088494819,7.48230321,1932.0,1931.9,1.3298]
[1742088498721,6.00315935,1932.0,1931.9,1.3298]
[1742088499611,5.0217,1932.0,1931.9,1.3298]
[1742088500716,3.9865,1932.0,1931.7,1.7419]
[1742088500911,1.03528,1931.8,1931.7,2.4244]
[1742088501318,1.03528,1931.8,1931.7,1.3891]
[1742088502622,1.03533,1931.7,1931.6,0.00777726]
[1742088503017,1.03533,1931.7,1931.6,1.38537726]
[1742088504219,1.74953,1931.7,1931.6,1.38537726]
[1742088504422,3.19883,1931.7,1931.6,1.38537726]
[1742088505017,6.52983,1931.7,1931.6,1.38537726]
[1742088505225,9.73763,1931.7,1931.6,0.00777726]
[1742088505925,10.71908935,1931.7,1931.6,0.00777726]
[1742088507527,10.71908935,1931.7,1931.6,1.40747726]
[1742088508416,0.98145935,1931.7,1931.6,2.44286726]
[1742088508729,7.57405,1931.9,1931.8,1.03528]
[1742088508927,7.57405,1931.9,1931.7,3.82689]
[1742088509117,7.57405,1931.9,1931.8,1.3997]
[1742088509319,7.57405,1931.9,1931.8,2.43498]
[1742088509628,4.24305,1931.9,1931.8,2.43498]
[1742088511130,1.03525,1931.9,1931.8,2.43498]
[1742088511329,5.34866935,1932.0,1931.8,2.43498]
[1742088511628,2.01666935,1932.0,1931.9,1.3484]
[1742088512228,0.98145935,1932.0,1931.9,2.38362]
[1742088512927,3.2078,1932.1,1932.0,1.03517]
[1742088513129,3.2078,1932.1,1932.0,3.04567]
[1742088513530,2.01653935,1932.2,1932.0,3.04567]
[1742088513832,2.85446125,1932.2,1932.1,3.09382]
[1742088514021,2.85446125,1932.2,1932.1,2.0587]
[1742088514227,3.49736569,1932.2,1932.1,1.3698]
[1742088514625,2.46228569,1932.2,1931.8,1.72414]
[1742088514937,1.03521,1932.0,1931.9,1.3698]
[1742088515631,1.74991,1932.0,1931.9,1.3698]
[1742088515835,1.03521,1932.0,1931.9,2.40502]
[1742088516027,1.03521,1932.0,1931.9,1.3698]
[1742088518333,4.36521,1932.0,1931.9,1.3698]
[1742088518529,5.84603634,1932.0,1931.9,1.3698]
[1742088518833,6.82749569,1932.0,1931.9,1.3698]
[1742088519232,1.03522,1931.9,1931.7,1.0353]
[1742088519432,1.69042,1931.9,1931.8,1.379]
[1742088523738,4.89822,1931.9,1931.8,1.379]
[1742088523934,6.27562,1931.9,1931.8,1.379]
[1742088524335,7.25707935,1931.9,1931.8,1.379]
[1742088525830,7.25707935,1931.9,1931.6,0.00777726]
[1742088525831,7.05993667,1931.9,1931.6,0.00777726]
[1742088526033,4.24313,1931.7,1931.6,0.00777726]
[1742088526236,7.56613,1931.7,1931.6,0.00777726]
[1742088526542,8.40420732,1931.7,1931.6,0.00777726]
[1742088526741,10.82306667,1931.7,1931.6,0.00777726]
[1742088526943,1.03549,1931.4,1931.3,1.3398]
[1742088527629,2.47289,1931.4,1931.3,1.3398]
[1742088540748,1.03555,1931.3,1931.2,0.00777726]
[1742088540952,2.46105,1931.3,1931.2,1.43967726]
[1742088541448,7.22227,1931.3,1930.8,3.2078]
[1742088541640,1.03571,1931.0,1930.9,1.423]
[1742088542250,2.47991,1931.0,1930.9,1.423]
[1742088542452,4.652,1931.0,1930.7,1.4431]
[1742088542750,3.16326,1930.9,1930.8,0.00777726]
[1742088542951,1.03596,1930.6,1930.4,1.03601]
[1742088543349,7.58471,1930.7,1930.5,1.03597]
[1742088543552,6.5488,1930.7,1930.5,1.03597]
[1742088543758,7.58467,1930.7,1930.6,1.423]
[1742088545855,9.01507,1930.7,1930.6,1.423]
[1742088546659,3.2078,1930.7,1930.6,2.45892]
[1742088546853,3.2078,1930.7,1930.6,3.81972]
[1742088547055,2.46613,1931.0,1930.8,1.03581]
[1742088547056,4.24356,1930.9,1930.8,1.03581]
[1742088547256,5.67816,1930.9,1930.8,1.03581]
[1742088547460,4.6424,1930.9,1930.8,1.03581]
[1742088547755,3.2078,1930.9,1930.8,1.03581]
[1742088549258,2.47035,1931.0,1930.9,1.03576]
[1742088551165,1.03581,1930.8,1930.7,1.4156]
[1742088551855,3.08471,1930.8,1930.7,1.4156]
[1742088552162,3.08471,1930.8,1930.7,2.45147]
[1742088552364,3.08471,1930.8,1930.7,1.4156]
[1742088552966,3.08471,1930.8,1930.7,2.45147]
[1742088553159,4.24355,1931.0,1930.8,1.03578]
[1742088553363,4.7843,1930.9,1930.8,2.47738]
[1742088553664,5.82006,1930.9,1930.8,1.4416]
[1742088554465,5.82006,1930.9,1930.8,2.47741]
[1742088554760,5.82006,1930.9,1930.8,1.4416]
[1742088555062,5.82006,1930.9,1930.8,2.47741]
[1742088555958,5.82006,1930.9,1930.8,1.4416]
[1742088556767,5.82006,1930.9,1930.8,2.47741]
[1742088557060,5.82006,1930.9,1930.8,1.4416]
[1742088558063,5.82006,1930.9,1930.8,2.47741]
[1742088558668,6.80179682,1930.9,1930.8,2.47741]
[1742088559161,5.76603682,1930.9,1930.8,2.47741]
[1742088559357,0.98173682,1930.9,1930.8,2.47741]
[1742088559759,3.2078,1931.0,1930.9,1.03576]
[1742088559961,3.2078,1931.0,1930.9,3.13896]
[1742088560166,2.49115726,1931.1,1931.0,1.03571]
[1742088560372,2.49115726,1931.1,1931.0,2.1192]
[1742088560569,3.17855726,1931.1,1931.0,2.1192]
[1742088561772,3.86935726,1931.1,1931.0,2.1192]
[1742088563663,3.86935726,1931.1,1931.0,1.4123]
[1742088565059,1.03575,1931.0,1930.8,1.03577]
[1742088565262,2.45835,1931.0,1930.9,1.4227]
[1742088565869,5.66615,1931.0,1930.9,1.4227]
[1742088567366,9.00515,1931.0,1930.9,1.4227]
[1742088568273,9.98800329,1931.0,1930.9,1.4227]
[1742088571473,9.98800329,1931.0,1930.7,1.71883]
[1742088571474,1.03581,1930.8,1930.7,1.71883]
[1742088572576,1.03587,1930.7,1930.6,1.73288]
[1742088572777,1.71017,1930.7,1930.6,3.15168]
[1742088572977,0.6743,1930.7,1930.6,3.15168]
[1742088573172,2.0757,1930.7,1930.6,3.15168]
[1742088573673,1.4014,1930.7,1930.6,3.15168]
[1742088573874,2.43727,1930.7,1930.6,3.15168]
[1742088574978,1.4014,1930.7,1930.6,3.15168]
[1742088575679,2.69420566,1930.9,1930.8,1.03581]
[1742088575879,5.73949,1930.9,1930.8,1.03581]
[1742088576376,6.72360566,1930.9,1930.8,2.47831]
[1742088584183,6.72357566,1930.9,1930.8,2.47831]
[1742088590495,5.73946,1930.9,1930.8,2.47831]
[1742088592693,4.7037,1930.9,1930.8,2.47831]
[1742088593095,5.73946,1930.9,1930.8,2.47831]
[1742088593291,4.7037,1930.9,1930.8,2.47831]
[1742088593995,0.98411566,1931.0,1930.9,1.03576]
[1742088594187,2.01982566,1931.0,1930.9,3.09676]
[1742088594390,2.33561566,1931.0,1930.9,3.09676]
[1742088594693,1.3515,1931.0,1930.9,3.09676]
[1742088595093,2.38721,1931.0,1930.9,2.061]
[1742088595398,2.38721,1931.0,1930.9,2.43336]
[1742088596995,1.03576,1930.9,1930.8,1.03578]
[1742088597191,2.42616,1930.9,1930.8,1.03578]
[1742088597397,2.42616,1930.9,1930.7,2.39203]
[1742088597590,0.7165,1930.8,1930.7,2.39203]
[1742088597792,1.75231,1930.8,1930.5,0.00777726]
[1742088597992,2.41151,1930.8,1930.7,1.03587]
[1742088598387,3.80191,1930.8,1930.7,1.03587]
[1742088598698,4.78607566,1930.8,1930.6,2.46659]
[1742088598994,2.47987,1930.7,1930.6,2.46659]
[1742088599196,2.47987,1930.7,1930.6,1.03589]
[1742088600388,1.03592,1930.6,1930.5,0.00777726]
[1742088600594,2.47992,1930.6,1930.5,0.00777726]
[1742088600795,5.80592,1930.6,1930.5,0.00777726]
[1742088600990,6.64526393,1930.6,1930.5,0.00777726]
[1742088601193,6.25348153,1930.6,1930.2,1.7374]
[1742088601399,5.9881,1930.5,1930.2,1.0361]
[1742088601592,2.48007,1930.4,1930.2,1.0361]
[1742088601792,7.9828,1930.3,1930.0,0.7013]
[1742088601993,1.377,1930.2,1930.1,1.03619]
[1742088602196,1.377,1930.2,1930.1,1.75349]
[1742088602395,3.2078,1930.3,1930.2,1.03614]
[1742088603792,2.36111566,1930.4,1930.3,1.03608]
[1742088604104,1.377,1930.4,1930.3,1.03608]
[1742088604600,3.2078,1930.6,1930.5,1.03598]
[1742088604900,7.9158,1930.6,1930.5,1.03598]
[1742088605100,1.03603,1930.4,1930.3,1.03607]
[1742088605601,1.0361,1930.3,1930.2,1.03611]
[1742088605800,3.0963,1930.3,1930.2,1.03611]
[1742088605998,2.59035,1930.2,1929.8,1.03633]
[1742088606196,3.8806,1930.1,1929.7,4.24418]
[1742088606406,1.03635,1929.8,1929.7,4.24418]
[1742088606609,1.03632,1929.9,1929.8,1.03634]
[1742088607103,2.39782,1929.9,1929.8,1.03634]
[1742088607304,2.39782,1929.9,1929.8,1.03635]
[1742088607503,1.3615,1929.9,1929.8,1.03635]
[1742088608195,4.0387,1930.0,1929.7,3.2078]
[1742088608400,4.6638,1930.0,1929.9,1.0363]
[1742088610897,0.00777726,1930.1,1930.0,1.03624]
[1742088613008,3.21557726,1930.1,1929.9,1.0363]
[1742088613207,1.3799,1930.0,1929.9,1.0363]
[1742088613406,7.08254,1930.0,1929.9,1.0363]
[1742088614006,6.0463,1930.0,1929.8,1.3694]
[1742088614210,5.70269,1930.0,1929.9,1.0363]
[1742088614409,4.6664,1930.0,1929.9,1.0363]
[1742088615414,5.70264,1930.0,1929.9,1.0363]
[1742088615611,4.6664,1930.0,1929.9,1.0363]
[1742088616504,3.21557726,1930.1,1930.0,1.03624]
[1742088616811,6.56057726,1930.1,1930.0,1.03624]
[1742088617201,3.21557726,1930.1,1930.0,1.03624]
[1742088617407,0.00777726,1930.1,1930.0,3.15374]
[1742088617613,0.69587726,1930.1,1930.0,3.15374]
[1742088618212,1.73206726,1930.1,1930.0,2.45834]
[1742088618810,1.73206726,1930.1,1930.0,1.4221]
[1742088619008,1.03624,1930.0,1929.9,1.03627]
[1742088619315,1.0363,1929.9,1929.8,2.45843]
[1742088619710,1.03628,1930.0,1929.9,1.03628]
[1742088620310,4.93989726,1930.1,1930.0,1.03624]
[1742088620810,4.93989726,1930.1,1929.9,1.3494]
[1742088620811,1.03624,1930.0,1929.9,1.70457]
[1742088621009,1.03624,1930.0,1929.9,1.03627]
[1742088623616,3.90367726,1930.1,1929.8,1.4221]
[1742088623914,3.90367726,1930.1,1929.9,1.03629]
[1742088624114,1.03627,1930.0,1929.9,1.03629]
[1742088624413,1.0363,1929.9,1929.8,1.4221]
[1742088624915,1.0363,1929.9,1929.8,2.45845]
[1742088626115,9.63267,1929.2,1929.1,1e-05]
[1742088626417,1.03705,1928.5,1928.4,0.42514048]
[1742088626608,4.48105,1928.5,1928.4,1.79474048]
[1742088626911,4.48105,1928.5,1928.4,1.3696]
[1742088627512,3.444,1928.5,1928.4,1.3696]
[1742088628112,4.48105,1928.5,1928.4,1.3696]
[1742088628313,3.444,1928.5,1928.4,1.3696]
[1742088628715,4.48105,1928.5,1928.4,1.3696]
[1742088629017,3.21557726,1928.6,1928.5,1.03705]
[1742088630113,3.21557726,1928.6,1928.4,2.40668]
[1742088630315,3.21557726,1928.6,1928.5,1.03705]
[1742088630514,3.21557726,1928.6,1928.5,2.36245]
[1742088634516,3.21557726,1928.6,1928.5,4.86245]
[1742088637017,3.435,1929.0,1928.9,1.03683]
[1742088637213,3.2078,1929.1,1929.0,1.03678]
[1742088637818,4.5772,1929.1,1929.0,1.03678]
[1742088638518,5.61393,1929.1,1929.0,1.03678]
[1742088638723,4.5772,1929.1,1929.0,1.03678]
[1742088638923,5.61393,1929.1,1929.0,1.03678]
[1742088639219,4.5772,1929.1,1929.0,1.03678]
[1742088640327,3.2078,1929.1,1929.0,1.03678]
[1742088640923,4.5199,1929.1,1929.0,1.03678]
[1742088642621,5.55663,1929.1,1929.0,1.03678]
[1742088642822,4.5199,1929.1,1929.0,1.03678]
[1742088644321,5.55663,1929.1,1929.0,1.03678]
[1742088646722,5.55663,1929.1,1928.9,1.3195]
[1742088646922,4.5199,1929.1,1928.9,2.35629]
[1742088647128,5.55664,1929.1,1929.0,1.03678]
[1742088647323,4.24454,1929.1,1929.0,2.48258]
[1742088647527,3.2078,1929.1,1929.0,2.48258]
[1742088647833,4.24453,1929.1,1929.0,2.48258]
[1742088650828,3.2078,1929.1,1929.0,2.48258]
[1742088651125,0.00777726,1929.2,1929.1,1.03673]
[1742088651331,1.03648,1929.6,1929.4,1.03653]
[1742088651528,3.413,1929.6,1929.5,3.16461]
[1742088651731,8.36024,1929.7,1929.5,3.16461]
[1742088652026,8.36024,1929.7,1929.6,2.45336]
[1742088652426,3.9088,1929.7,1929.6,2.45336]
[1742088652724,3.2078,1929.7,1929.6,2.45336]
[1742088653131,4.2442,1929.7,1929.6,1.4169]
[1742088653827,1.03646,1929.6,1929.5,0.00777726]
[1742088654129,1.74846,1929.6,1929.5,0.00777726]
[1742088654635,1.74846,1929.6,1929.5,1.04428726]
[1742088655934,1.74846,1929.6,1929.5,0.00777726]
[1742088657935,1.74846,1929.6,1929.5,1.04428726]
[1742088659229,0.712,1929.6,1929.5,1.04428726]
[1742088659430,1.74846,1929.6,1929.5,1.04428726]
[1742088660337,0.712,1929.6,1929.5,1.04428726]
[1742088661037,1.74846,1929.6,1929.5,0.00777726]
[1742088661837,2.78649748,1929.6,1929.5,2.38708726]
[1742088662335,1.74846,1929.6,1929.5,2.38708726]
[1742088662638,0.712,1929.6,1929.5,2.38708726]
[1742088663234,4.24589,1929.7,1929.6,1.03646]
[1742088663435,4.24589,1929.7,1929.6,3.09736]
[1742088663629,3.2078,1929.7,1929.6,3.09736]
[1742088663829,4.6582,1929.7,1929.6,3.09736]
[1742088673037,5.6946,1929.7,1929.6,3.09736]
[1742088673343,1.03646,1929.6,1929.5,0.00777726]
[1742088673545,3.17566,1929.6,1929.5,0.00777726]
[1742088674645,6.57366,1929.6,1929.5,0.00777726]
[1742088675044,8.51434991,1929.6,1929.5,0.00777726]
[1742088675445,7.61223348,1929.6,1929.5,0.00777726]
[1742088676843,8.51483333,1929.6,1929.5,0.00777726]
[1742088677444,1.03669,1929.2,1929.0,3.2078]
[1742088677642,4.43267,1929.3,1929.2,1.3653]
[1742088678042,1.03667,1929.2,1929.1,1.74878]
[1742088678236,1.03667,1929.2,1929.1,2.0966]
[1742088678438,3.396,1929.3,1929.1,1.03671]
[1742088678635,3.396,1929.3,1929.1,2.42121]
[1742088678845,1.03671,1929.2,1929.1,2.42121]
[1742088679648,4.43266,1929.3,1929.2,1.03667]
[1742088679849,4.43266,1929.3,1929.2,2.42117]
[1742088680155,4.43266,1929.3,1929.2,1.3845]
[1742088680546,1.03673,1929.1,1929.0,3.21557726]
[1742088680745,1.03673,1929.1,1929.0,1.04455726]
[1742088681047,1.03673,1929.1,1929.0,0.00777726]
[1742088681249,1.75343,1929.1,1929.0,0.00777726]
[1742088683851,1.75343,1929.1,1929.0,1.44947726]
[1742088684058,1.75343,1929.1,1929.0,0.00777726]
[1742088685857,1.75343,1929.1,1929.0,1.35847726]
[1742088691473,1.03673,1929.1,1929.0,1.35847726]
[1742088691772,1.03673,1929.1,1929.0,2.39525726]
[1742088692669,3.2078,1929.2,1929.1,1.03673]
[1742088692974,6.5898,1929.2,1929.1,2.38563]
[1742088693476,4.24447,1929.2,1929.1,2.38563]
[1742088693973,1.4222,1929.2,1929.1,2.38563]
[1742088694665,1.03666,1929.3,1929.2,1.03667]
[1742088694870,2.45886,1929.3,1929.2,3.18947]
[1742088695163,2.45886,1929.3,1929.2,2.1528]
[1742088696968,2.45886,1929.3,1929.2,3.18947]
[1742088697173,3.2078,1929.4,1929.3,1.03662]
[1742088697367,3.2078,1929.4,1929.3,3.19572]
[1742088697970,3.38,1929.7,1929.4,2.59142]
[1742088698279,3.38,1929.7,1929.6,1.03646]
[1742088698872,3.38,1929.7,1929.6,1.75446]
[1742088699273,1.0364,1929.7,1929.6,1.75446]
[1742088701278,1.0364,1929.7,1929.6,1.3777]
[1742088702081,3.43546293,1929.8,1929.7,1.0364]
[1742088702280,3.43546293,1929.8,1929.7,2.4397]
[1742088705179,1.04647293,1929.8,1929.7,2.4397]
[1742088705381,3.2078,1929.9,1929.8,1.03635]
[1742088705578,3.2078,1929.9,1929.8,2.44945]
[1742088707082,0.00777726,1930.0,1929.9,1.0363]
[1742088707276,0.00777726,1930.0,1929.9,3.1547]
[1742088710485,1.43357726,1930.0,1929.9,3.1547]
[1742088711089,0.00777726,1930.0,1929.9,3.1547]
[1742088713482,1.40617726,1930.0,1929.9,3.1547]
[1742088715485,0.00777726,1930.0,1929.9,3.1547]
[1742088716990,1.37807726,1930.0,1929.9,3.1547]
[1742088721690,0.00777726,1930.0,1929.9,3.1547]
[1742088724892,1.43307726,1930.0,1929.9,2.4494]
[1742088725290,1.43307726,1930.0,1929.7,3.2078]
[1742088725587,1.43307726,1930.0,1929.8,1.03632]
[1742088725588,2.43391,1929.9,1929.8,1.03632]
[1742088725791,2.43391,1929.9,1929.8,2.34722]
[1742088725998,1.3976,1929.9,1929.8,2.34722]
[1742088726492,2.8229,1929.9,1929.8,2.34722]
[1742088726694,3.8592,1929.9,1929.8,2.34722]
[1742088727291,3.8592,1929.9,1929.8,1.3109]
[1742088727593,3.8592,1929.9,1929.8,2.34725]
[1742088727794,3.8592,1929.9,1929.8,1.3109]
[1742088727993,3.8592,1929.9,1929.8,2.34725]
[1742088728396,2.8229,1929.9,1929.8,2.34725]
[1742088728899,3.8592,1929.9,1929.8,2.34725]
[1742088731790,2.8229,1929.9,1929.8,2.34725]
[1742088731993,3.8592,1929.9,1929.8,2.34725]
[1742088732798,1.03635,1929.8,1929.7,1.03638]
[1742088733095,2.40895,1929.8,1929.7,2.47648]
[1742088734299,1.3726,1929.8,1929.7,2.47648]
[1742088735903,2.40895,1929.8,1929.7,2.47648]
[1742088737601,0.00777726,1930.0,1929.9,1.0363]
[1742088738100,3.2078,1930.5,1930.0,2.59058]
[1742088738403,1.3677,1930.4,1930.3,1.03608]
[1742088739302,1.3677,1930.4,1930.3,2.45418]
[1742088742109,0.00777726,1930.5,1930.4,1.03603]
[1742088742311,0.00777726,1930.5,1930.4,1.75603]
[1742088744304,0.00777726,1930.5,1930.4,3.13683]
[1742088744704,0.00777726,1930.5,1930.4,2.41683]
[1742088745013,1.33247726,1930.5,1930.4,2.41683]
[1742088745509,2.36845726,1930.5,1930.4,1.3808]
[1742088745811,5.57625726,1930.5,1930.4,1.3808]
[1742088746009,5.57625726,1930.5,1930.4,2.41683]
[1742088747998,4.54027726,1930.5,1930.4,2.41683]
[1742088749214,5.57625726,1930.5,1930.4,1.3808]
[1742088750707,1.03603,1930.4,1930.2,0.69117726]
[1742088751011,1.03608,1930.3,1930.2,0.00777726]
[1742088751217,0.656,1930.3,1930.2,1.04391726]
[1742088751516,2.0723,1930.3,1930.2,1.04391726]
[1742088753216,3.10838,1930.3,1930.2,0.00777726]
[1742088753417,3.10838,1930.3,1930.2,1.04391726]
[1742088753608,3.10838,1930.3,1930.2,2.48461726]
[1742088755122,2.0723,1930.3,1930.2,2.48461726]
[1742088755821,3.10838,1930.3,1930.2,2.48461726]
[1742088756023,2.0723,1930.3,1930.2,1.04391726]
[1742088756528,1.4163,1930.3,1930.2,1.04391726]
[1742088756910,2.45238,1930.3,1930.2,1.04391726]
[1742088761020,2.45238,1930.3,1930.2,0.00777726]
[1742088761527,2.45238,1930.3,1930.2,1.39087726]
[1742088762527,2.45238,1930.3,1930.2,0.00777726]
[1742088762721,1.03619,1930.1,1930.0,1.03622]
[1742088762922,4.7487,1930.2,1930.1,1.03619]
[1742088763320,1.4117,1930.2,1930.1,1.03619]
[1742088763519,1.4117,1930.2,1930.1,2.37159]
[1742088765829,2.44784,1930.2,1930.1,2.37159]
[1742088768833,2.44784,1930.2,1930.1,1.3354]
[1742088769028,1.03619,1930.1,1930.0,1.04401726]
[1742088769225,1.4455,1930.1,1930.0,1.04401726]
[1742088769425,5.07172,1930.3,1930.2,1.03614]
[1742088769626,5.07172,1930.3,1930.1,1.03616]
[1742088769832,3.2078,1930.2,1929.4,3.2078]
[1742088770133,1.03639,1929.8,1929.5,1.74399]
[1742088770324,1.03646,1929.6,1929.5,0.7075]
[1742088770725,2.43786,1929.6,1929.5,2.0754]
[1742088770925,2.43786,1929.6,1929.5,1.3679]
[1742088771128,1.03656,1929.5,1929.4,0.00777726]
[1742088771326,2.43796,1929.5,1929.4,0.00777726]
[1742088772430,5.64576,1929.5,1929.4,0.00777726]
[1742088774533,5.64576,1929.5,1929.4,1.45647726]
[1742088775035,4.6092,1929.5,1929.4,1.45647726]
[1742088775231,2.43791,1929.5,1929.4,2.49304726]
[1742088775433,2.43791,1929.5,1929.4,1.45647726]
[1742088775930,2.43791,1929.5,1929.4,2.49304726]
[1742088776138,2.43791,1929.5,1929.4,1.45647726]
[1742088776932,5.64571,1929.5,1929.4,0.00777726]
[1742088779543,1.03667,1929.2,1929.1,1.4116]
[1742088779732,4.24447,1929.2,1929.1,1.4116]
[1742088780136,6.28687,1929.2,1929.1,1.4116]
[1742088780536,5.2502,1929.2,1928.8,1.339]
[1742088780736,1.03689,1928.8,1928.7,3.2078]
[1742088781339,3.2078,1928.8,1928.4,0.6626]
[1742088781635,5.76604,1928.7,1928.4,2.39187]
[1742088781837,7.13914,1928.7,1928.5,1.3386]
[1742088782042,1.3731,1928.6,1928.5,1.3386]
[1742088782743,2.4101,1928.6,1928.5,1.3386]
[1742088783137,1.3731,1928.6,1928.5,1.3386]
[1742088783447,2.4101,1928.6,1928.5,1.3386]
[1742088783640,1.3731,1928.6,1928.5,1.3386]
[1742088784545,2.41012,1928.6,1928.3,1.03714]
[1742088784847,1.3731,1928.6,1928.4,1.4025]
[1742088785044,1.3913,1928.5,1928.4,1.4025]
[1742088786149,2.42835,1928.5,1928.4,1.4025]
[1742088786648,1.3913,1928.5,1928.4,1.4025]
[1742088786849,2.42835,1928.5,1928.4,1.4025]
[1742088787045,1.03703,1928.6,1928.4,1.4025]
[1742088787349,2.42832,1928.6,1928.4,2.0764]
[1742088787847,2.42832,1928.6,1928.5,1.4449]
[1742088788844,1.03713,1928.4,1928.2,3.2078]
[1742088789047,1.03713,1928.4,1928.3,1.4449]
[1742088790160,1.3477,1928.5,1928.3,1.4449]
[1742088790367,1.3477,1928.5,1928.4,1.0371]
[1742088790864,3.2078,1928.8,1928.7,1.03694]
[1742088791771,5.78524,1928.9,1928.7,1.03694]
[1742088792062,2.59223,1928.8,1928.3,0.71439326]
[1742088792271,3.2078,1928.6,1928.2,4.90909]
[1742088792457,1.03712,1928.4,1928.3,1.3975]
[1742088793355,1.3464,1928.5,1928.3,1.3975]
[1742088793662,2.38347,1928.5,1928.3,2.43466]
[1742088794161,1.03707,1928.5,1928.4,1.3672]
[1742088796169,6.6158,1928.6,1928.2,0.6641]
[1742088796364,6.6158,1928.6,1928.2,3.06851]
[1742088796565,6.6158,1928.6,1928.2,2.0313]
[1742088796761,4.44501,1928.6,1928.3,1.4378]
[1742088796962,4.44501,1928.6,1928.5,1.03705]
[1742088797163,1.74788,1928.7,1928.6,1.037]
[1742088797357,4.24472,1928.8,1928.7,1.03694]
[1742088797666,6.6128,1928.8,1928.7,1.03694]
[1742088798460,3.2078,1928.8,1928.7,1.03694]
[1742088798663,7.64869,1928.8,1928.7,1.03694]
[1742088798861,6.6118,1928.8,1928.7,2.47474]
[1742088800574,3.404,1928.8,1928.7,2.47474]
[1742088800872,4.44089,1928.8,1928.7,1.4378]
[1742088801267,1.03728,1928.1,1927.9,3.2078]
[1742088801474,1.03732,1928.0,1927.9,4.24515]
[1742088801771,3.486,1928.1,1928.0,1.03732]
[1742088801971,3.486,1928.1,1928.0,3.06812]
[1742088802866,3.486,1928.1,1928.0,2.0308]
[1742088803068,3.486,1928.1,1928.0,3.06812]
[1742088803874,4.52326,1928.1,1928.0,2.0308]
[1742088804069,3.486,1928.1,1928.0,3.06812]
[1742088804370,35.4568,1928.1,1927.4,1.03763]
[1742088804559,3.2078,1927.7,1927.3,1.3989]
[1742088804765,3.495,1927.6,1927.4,1.03761]
[1742088805062,4.53253,1927.6,1927.5,1.3989]
[1742088805259,6.08891,1927.6,1927.1,0.79436954]
[1742088805462,0.6644,1927.5,1927.1,0.07997628]
[1742088805664,1.03768,1927.4,1927.1,2.51664628]
[1742088805862,4.5347,1927.3,1927.2,1.3244]
[1742088806068,3.497,1927.3,1927.2,2.36215]
[1742088806262,7.3712,1927.5,1927.3,1.03768]
[1742088806578,8.40879,1927.5,1927.4,1.3244]
[1742088807168,1.03766,1927.4,1927.1,0.78307628]
[1742088807370,4.1634,1927.5,1927.2,1.3244]
[1742088807669,6.7098,1927.7,1927.6,1.03753]
[1742088808171,3.506,1928.0,1927.3,3.9186]
[1742088808367,3.506,1928.0,1927.7,1.03744]
[1742088808368,1.0374,1927.9,1927.7,1.03744]
[1742088808673,1.0374,1927.9,1927.8,1.3244]
[1742088808872,3.506,1928.0,1927.8,1.3244]
[1742088809173,3.506,1928.0,1927.9,1.03737]
[1742088809375,3.2078,1928.1,1927.8,1.3244]
[1742088809568,5.22242726,1928.2,1927.9,1.03732]